bitfinex/quotes_BTCUSD_20230404
["timestamp","ask_amount","ask_price","bid_price","bid_amount"]
[1680585942144,0.077,27909.0,27907.0,0.21253982]
[1680585942325,0.2097334,27908.0,27907.0,0.21253982]
[1680585942572,0.2097334,27908.0,27907.0,0.08502533]
[1680585943728,0.2277334,27908.0,27907.0,0.08502533]
[1680585950561,0.2277334,27908.0,27907.0,0.12328595]
[1680585950777,0.1801374,27908.0,27907.0,0.12328595]
[1680585951032,0.29787176,27908.0,27907.0,0.12328595]
[1680585951263,0.62992289,27908.0,27907.0,0.03826062]
[1680585951487,0.62992289,27908.0,27907.0,0.12328595]
[1680585952401,0.57967589,27908.0,27907.0,0.12328595]
[1680585953276,0.2423054,27908.0,27907.0,0.12328595]
[1680585953503,0.1586394,27908.0,27907.0,0.26104144]
[1680585953707,0.1586394,27908.0,27907.0,0.12328595]
[1680585953708,0.1658054,27908.0,27907.0,0.12328595]
[1680585953953,0.1658054,27908.0,27907.0,0.25080044]
[1680585954184,0.1658054,27908.0,27907.0,0.12328595]
[1680585954401,0.1658054,27908.0,27907.0,0.18738878]
[1680585954598,0.1658054,27908.0,27907.0,0.12328595]
[1680585960502,0.16569725,27908.0,27907.0,0.12328595]
[1680585962728,0.59574741,27908.0,27907.0,0.03826062]
[1680585963642,0.69574741,27908.0,27907.0,0.03826062]
[1680585963904,0.69574741,27908.0,27905.0,0.09229408]
[1680585963905,0.69023625,27908.0,27905.0,0.00726875]
[1680585964139,0.350225,27907.0,27905.0,0.00708875]
[1680585964374,0.254955,27906.0,27905.0,0.00708875]
[1680585964592,0.354955,27906.0,27905.0,0.00708875]
[1680585964819,0.78389898,27906.0,27905.0,0.00708875]
[1680585965217,0.81089898,27906.0,27905.0,0.00708875]
[1680585965479,1.04942088,27906.0,27905.0,0.00708875]
[1680585965732,1.07642088,27906.0,27905.0,0.00708875]
[1680585965947,1.07642088,27906.0,27905.0,0.04237853]
[1680585966622,1.04942088,27906.0,27905.0,0.04237853]
[1680585966845,1.07642088,27906.0,27905.0,0.04237853]
[1680585967069,1.04942088,27906.0,27905.0,0.04237853]
[1680585967260,1.07642088,27906.0,27905.0,0.04237853]
[1680585968654,0.9474769,27906.0,27905.0,0.04237853]
[1680585969078,0.681955,27906.0,27905.0,0.04237853]
[1680585969298,0.753624,27906.0,27905.0,0.04237853]
[1680585969944,0.726624,27906.0,27905.0,0.04237853]
[1680585970398,0.78907239,27906.0,27905.0,0.04237853]
[1680585970819,0.93981375,27906.0,27905.0,0.04237853]
[1680585971273,1.22532252,27906.0,27905.0,0.04237853]
[1680585971462,0.93981375,27906.0,27905.0,0.04237853]
[1680585971947,1.07558194,27906.0,27905.0,0.00708875]
[1680585972178,1.00391294,27906.0,27905.0,0.00708875]
[1680585972422,0.97691294,27906.0,27905.0,0.00708875]
[1680585972632,1.00391294,27906.0,27905.0,0.00708875]
[1680585974906,0.90391294,27906.0,27905.0,0.00708875]
[1680585975134,0.82721294,27906.0,27905.0,0.00708875]
[1680585975797,0.82721294,27906.0,27905.0,0.04248622]
[1680585977055,0.30004651,27905.0,27900.0,0.89895269]
[1680585977262,0.14053125,27902.0,27900.0,1.03039387]
[1680585977467,0.14053125,27902.0,27900.0,0.21825387]
[1680585977468,0.14769825,27902.0,27900.0,0.21825387]
[1680585977680,0.14053125,27902.0,27901.0,0.0340832]
[1680585977919,0.14769825,27902.0,27901.0,0.0340832]
[1680585978790,0.14053125,27902.0,27901.0,0.0340832]
[1680585979008,0.14769825,27902.0,27901.0,0.0340832]
[1680585979231,0.48411297,27902.0,27899.0,0.13019772]
[1680585979454,0.03229606,27901.0,27899.0,0.13013772]
[1680585979672,0.03229606,27901.0,27900.0,0.009586]
[1680585980298,0.03229606,27901.0,27899.0,0.19136411]
[1680585980548,0.03229606,27901.0,27900.0,0.43381747]
[1680585980757,0.03229606,27901.0,27900.0,0.42323447]
[1680585980944,0.03229606,27901.0,27900.0,0.43286647]
[1680585981171,0.03229606,27901.0,27900.0,0.42323447]
[1680585981384,0.03229606,27901.0,27900.0,0.009591]
[1680585981606,0.05629606,27901.0,27900.0,0.43282547]
[1680585981822,0.03229606,27901.0,27900.0,0.43282547]
[1680585982037,0.03229606,27901.0,27900.0,0.42323447]
[1680585982234,0.05929606,27901.0,27900.0,0.52070343]
[1680585982482,0.47694597,27902.0,27900.0,0.42323447]
[1680585982696,0.48411297,27902.0,27899.0,0.34305517]
[1680585982919,0.51640903,27902.0,27900.0,0.010023]
[1680585983207,0.011,27901.0,27899.0,0.34287517]
[1680585983436,0.48411297,27902.0,27900.0,0.009463]
[1680585983657,0.51111297,27902.0,27899.0,0.34287517]
[1680585983875,0.54340903,27902.0,27899.0,0.34287517]
[1680585984311,0.54340903,27902.0,27900.0,0.42323174]
[1680585984501,0.51111297,27902.0,27899.0,0.21291745]
[1680585984741,0.54340903,27902.0,27900.0,0.0327841]
[1680585984950,0.51111297,27902.0,27900.0,0.0327841]
[1680585985164,0.48411297,27902.0,27900.0,0.0327841]
[1680585985383,0.49511297,27902.0,27900.0,0.0327841]
[1680585985598,0.48411297,27902.0,27900.0,0.0327841]
[1680585985823,0.49511297,27902.0,27900.0,0.0327841]
[1680585986051,0.48411297,27902.0,27900.0,0.0327841]
[1680585986246,0.49511297,27902.0,27900.0,0.0327841]
[1680585987197,0.49511297,27902.0,27900.0,0.2029542]
[1680585988342,0.49511297,27902.0,27900.0,0.33058177]
[1680585988767,0.49511297,27902.0,27901.0,0.56046319]
[1680585988989,0.49511297,27902.0,27901.0,0.13723057]
[1680585989204,0.49511297,27902.0,27901.0,0.21271269]
[1680585989457,0.14074125,27902.0,27901.0,0.22241369]
[1680585989681,0.14074125,27902.0,27901.0,0.56055087]
[1680585989887,0.14074125,27902.0,27901.0,0.57027087]
[1680585990126,0.14074125,27902.0,27901.0,0.57039087]
[1680585990352,0.14074125,27902.0,27901.0,0.56055087]
[1680585991493,0.15874125,27902.0,27901.0,0.56055087]
[1680585991930,0.15874125,27902.0,27901.0,0.55084987]
[1680585992153,0.15874125,27902.0,27901.0,0.56067587]
[1680585993008,0.15874125,27902.0,27901.0,0.73084597]
[1680585993915,0.15874125,27902.0,27901.0,0.74038597]
[1680585994366,0.15874125,27902.0,27901.0,0.74032597]
[1680585994601,0.15874125,27902.0,27901.0,0.74038597]
[1680585994866,0.15874125,27902.0,27901.0,0.77297828]
[1680585995334,0.15874125,27902.0,27901.0,0.77345828]
[1680585995574,0.15874125,27902.0,27901.0,0.77309828]
[1680585996003,0.15874125,27902.0,27901.0,0.77303828]
[1680585996231,0.15874125,27902.0,27901.0,0.77339828]
[1680585996454,0.15874125,27902.0,27901.0,0.77352259]
[1680585996684,0.15874125,27902.0,27901.0,0.64589071]
[1680585996880,0.15874125,27902.0,27901.0,0.64577071]
[1680585997048,0.15874125,27902.0,27901.0,0.77345184]
[1680585997275,0.15874125,27902.0,27901.0,0.58361574]
[1680585997478,0.15874125,27902.0,27901.0,0.59365774]
[1680585998461,0.15874125,27902.0,27901.0,0.76382784]
[1680585999338,0.16590825,27902.0,27901.0,0.58361574]
[1680585999747,0.1656221,27902.0,27901.0,0.58379574]
[1680586000443,0.1656221,27902.0,27901.0,0.75396584]
[1680586001091,0.1656221,27902.0,27901.0,0.75390584]
[1680586002187,0.1656221,27902.0,27901.0,0.75396584]
[1680586002402,0.1656221,27902.0,27901.0,0.62634471]
[1680586004214,0.1656221,27902.0,27901.0,0.66891206]
[1680586004426,0.1656221,27902.0,27901.0,0.66885206]
[1680586004659,0.1656221,27902.0,27901.0,0.66891206]
[1680586005299,0.1656221,27902.0,27901.0,0.66885206]
[1680586005519,0.1656221,27902.0,27901.0,0.66891206]
[1680586006423,0.1656221,27902.0,27901.0,0.45611461]
[1680586007067,0.1656221,27902.0,27901.0,0.45617461]
[1680586008909,0.1656221,27902.0,27901.0,0.66928929]
[1680586009355,0.1656221,27902.0,27901.0,0.66922929]
[1680586010016,0.1656221,27902.0,27901.0,0.66928929]
[1680586010472,0.1656221,27902.0,27901.0,0.27387523]
[1680586010670,0.1656221,27902.0,27901.0,0.03413782]
[1680586011460,0.1656221,27902.0,27901.0,0.02913782]
[1680586012739,0.1656221,27902.0,27901.0,0.21313174]
[1680586013611,0.50659331,27902.0,27901.0,0.24705701]
[1680586013851,0.63087331,27902.0,27901.0,0.24705701]
[1680586014512,0.53882726,27902.0,27901.0,0.24705701]
[1680586015423,0.58871726,27902.0,27901.0,0.24705701]
[1680586016919,0.58871726,27902.0,27901.0,0.41758416]
[1680586017115,0.58871726,27902.0,27901.0,0.41758429]
[1680586017342,0.58871726,27902.0,27901.0,0.24705701]
[1680586017556,0.65188949,27902.0,27901.0,0.41758619]
[1680586018639,0.60199949,27902.0,27901.0,0.41758619]
[1680586018852,0.58663326,27902.0,27901.0,0.41758619]
[1680586019508,0.58663326,27902.0,27901.0,0.26351379]
[1680586019711,0.58663326,27902.0,27901.0,0.20445445]
[1680586023793,0.58663326,27902.0,27901.0,0.0820894]
[1680586024014,0.58642326,27902.0,27901.0,0.0820894]
[1680586025418,0.58642326,27902.0,27901.0,0.03392783]
[1680586025419,1.94458726,27902.0,27901.0,0.03392783]
[1680586025660,0.65458096,27902.0,27901.0,0.03392783]
[1680586026079,1.94461455,27902.0,27901.0,0.03392783]
[1680586026538,1.92661455,27902.0,27901.0,0.03392783]
[1680586026798,1.92661455,27902.0,27900.0,0.08525234]
[1680586026799,0.1,27901.0,27900.0,0.08525234]
[1680586027025,0.78487101,27901.0,27900.0,0.08525234]
[1680586027245,0.78487101,27901.0,27899.0,0.08525234]
[1680586027459,0.16116229,27900.0,27899.0,0.08525234]
[1680586027681,0.46854029,27900.0,27899.0,0.08525234]
[1680586028386,0.76308244,27900.0,27899.0,0.08525234]
[1680586029059,0.76308244,27900.0,27899.0,0.21310767]
[1680586029313,0.79008244,27900.0,27899.0,0.08525234]
[1680586029530,0.78752344,27900.0,27899.0,0.08525234]
[1680586029969,0.73838044,27900.0,27899.0,0.08525234]
[1680586030412,0.78570944,27900.0,27899.0,0.08525234]
[1680586031513,0.78635944,27900.0,27899.0,0.08525234]
[1680586031802,0.73838044,27900.0,27899.0,0.08525234]
[1680586033309,0.73838044,27900.0,27898.0,0.21310767]
[1680586033942,0.1476231,27899.0,27898.0,0.08525234]
[1680586034164,0.4801761,27899.0,27898.0,0.08525234]
[1680586034371,0.4803861,27899.0,27898.0,0.21310767]
[1680586034590,0.69449653,27899.0,27898.0,0.08525234]
[1680586034808,0.048975,27898.0,27897.0,0.23408767]
[1680586035023,0.18026149,27898.0,27897.0,0.23390767]
[1680586035238,0.18026149,27898.0,27897.0,0.10617234]
[1680586035450,0.18026149,27898.0,27897.0,0.10605234]
[1680586035655,0.52197731,27898.0,27897.0,0.10605234]
[1680586035778,0.54597731,27898.0,27897.0,0.10605234]
[1680586036659,0.54618731,27898.0,27897.0,0.09605234]
[1680586037105,0.54618731,27898.0,27897.0,0.22390767]
[1680586037314,0.54618731,27898.0,27897.0,0.09605234]
[1680586039342,0.54918431,27898.0,27897.0,0.09605234]
[1680586039785,0.65460546,27898.0,27897.0,0.13156054]
[1680586040196,0.49721231,27898.0,27897.0,0.13156054]
[1680586041105,0.42011231,27898.0,27897.0,0.13156054]
[1680586043422,0.39860731,27898.0,27897.0,0.13156054]
[1680586043635,0.40577531,27898.0,27897.0,0.13156054]
[1680586048461,0.45450931,27898.0,27897.0,0.13156054]
[1680586048683,0.40577531,27898.0,27897.0,0.13156054]
[1680586051331,0.48287531,27898.0,27897.0,0.13156054]
[1680586051860,0.05689149,27898.0,27897.0,0.13156054]
[1680586052085,0.06384949,27898.0,27897.0,0.13156054]
[1680586054490,0.05668149,27898.0,27897.0,0.13156054]
[1680586054697,0.05668149,27898.0,27897.0,0.25941587]
[1680586055370,0.05668149,27898.0,27897.0,0.26901232]
[1680586055580,0.05668149,27898.0,27897.0,0.25930932]
[1680586056418,0.05668149,27898.0,27897.0,0.68260243]
[1680586056647,0.05668149,27898.0,27897.0,0.59745664]
[1680586057288,0.05668149,27898.0,27897.0,0.60707164]
[1680586057500,0.05668149,27898.0,27897.0,0.60683564]
[1680586058136,0.05668149,27898.0,27897.0,0.60745464]
[1680586058337,0.05668149,27898.0,27897.0,0.60757964]
[1680586058496,0.05668149,27898.0,27897.0,0.59745664]
[1680586058721,0.05668149,27898.0,27897.0,0.60704664]
[1680586059135,0.0565682,27898.0,27897.0,0.60704664]
[1680586059286,0.0565682,27898.0,27897.0,0.76781222]
[1680586059540,0.0565682,27898.0,27897.0,0.76770429]
[1680586059741,0.0565682,27898.0,27897.0,0.77812329]
[1680586060559,0.0565682,27898.0,27897.0,0.63995689]
[1680586062055,0.024,27898.0,27897.0,0.68273962]
[1680586062270,0.024,27898.0,27897.0,0.69205962]
[1680586062481,0.024,27898.0,27897.0,0.68273962]
[1680586063020,0.024,27898.0,27897.0,0.69282162]
[1680586063269,0.024,27898.0,27897.0,0.68273962]
[1680586063944,0.024,27898.0,27897.0,0.69238662]
[1680586064630,0.024,27898.0,27897.0,0.47936831]
[1680586064776,0.024,27898.0,27897.0,0.47942831]
[1680586064977,0.024,27898.0,27897.0,0.68278716]
[1680586065570,0.024,27898.0,27897.0,0.47970531]
[1680586066020,0.024,27898.0,27897.0,0.46978131]
[1680586066231,0.024,27898.0,27897.0,0.48002431]
[1680586066655,0.024,27898.0,27897.0,0.26943438]
[1680586066848,0.024,27898.0,27897.0,0.0564232]
[1680586067079,0.024,27898.0,27897.0,0.0562432]
[1680586067296,0.024,27898.0,27897.0,0.47953631]
[1680586067510,0.024,27898.0,27897.0,0.69272516]
[1680586068148,0.024,27898.0,27897.0,0.47971631]
[1680586071660,0.024,27898.0,27897.0,0.46978131]
[1680586071884,0.024,27898.0,27897.0,0.47915531]
[1680586072110,0.024,27898.0,27897.0,0.46978131]
[1680586072319,0.024,27898.0,27897.0,0.47942131]
[1680586073680,0.024,27898.0,27897.0,0.46978131]
[1680586073889,0.024,27898.0,27897.0,0.48022031]
[1680586075758,0.031168,27898.0,27897.0,0.46978131]
[1680586075984,0.031168,27898.0,27897.0,0.68289211]
[1680586076390,0.33087437,27898.0,27897.0,0.68289211]
[1680586076842,0.36344257,27898.0,27897.0,0.68289211]
[1680586079381,0.0637362,27898.0,27897.0,0.68289211]
[1680586079810,0.0637362,27898.0,27897.0,0.69301011]
[1680586080208,0.0637362,27898.0,27897.0,0.68289211]
[1680586081556,0.0637362,27898.0,27897.0,0.68283211]
[1680586081765,0.0637362,27898.0,27897.0,0.46960131]
[1680586081981,0.0637362,27898.0,27897.0,0.0463082]
[1680586082412,0.0637362,27898.0,27897.0,0.25944479]
[1680586082631,0.0637362,27898.0,27897.0,0.25962479]
[1680586082854,0.0637362,27898.0,27897.0,0.6829179]
[1680586086308,0.0637362,27898.0,27897.0,0.6933079]
[1680586086519,0.0637362,27898.0,27897.0,0.6829179]
[1680586087394,0.0637362,27898.0,27897.0,0.6924009]
[1680586087558,0.0637362,27898.0,27897.0,0.6829179]
[1680586087779,0.0637362,27898.0,27897.0,0.6827979]
[1680586087984,0.0637362,27898.0,27897.0,0.6924049]
[1680586088515,0.0637362,27898.0,27897.0,0.6829179]
[1680586093467,0.3976037,27898.0,27897.0,0.43017242]
[1680586093724,0.3976037,27898.0,27897.0,0.85346553]
[1680586093948,0.3976037,27898.0,27897.0,0.64032894]
[1680586094818,0.3976037,27898.0,27897.0,0.85346553]
[1680586095528,0.0637362,27898.0,27897.0,0.85346553]
[1680586096582,0.0637362,27898.0,27897.0,0.6829179]
[1680586097010,0.0637362,27898.0,27897.0,0.85347289]
[1680586097234,0.0637362,27898.0,27897.0,0.6829179]
[1680586097905,0.024,27898.0,27897.0,0.47997531]
[1680586098125,0.02390358,27898.0,27897.0,0.47979531]
[1680586098555,0.1404551,27899.0,27897.0,0.47979531]
[1680586098800,0.00021,27901.0,27898.0,0.56766664]
[1680586099027,0.18972759,27903.0,27900.0,0.21311133]
[1680586099028,0.18993759,27903.0,27900.0,0.21311133]
[1680586099256,0.18993759,27903.0,27902.0,0.12786337]
[1680586099502,0.21143959,27903.0,27902.0,0.08521598]
[1680586099724,0.46811677,27903.0,27902.0,0.08521598]
[1680586099939,0.47528377,27903.0,27902.0,0.11774375]
[1680586100840,0.46811677,27903.0,27902.0,0.11774375]
[1680586101064,0.46811677,27903.0,27902.0,0.18068205]
[1680586101293,0.1406651,27903.0,27902.0,0.18068205]
[1680586101554,0.1514551,27903.0,27902.0,0.19031905]
[1680586101775,0.1514551,27903.0,27902.0,0.18068205]
[1680586101776,0.1516651,27903.0,27902.0,0.18068205]
[1680586102205,0.1516651,27903.0,27902.0,0.11774375]
[1680586102746,0.1516651,27903.0,27902.0,0.24560712]
[1680586103190,0.1516651,27903.0,27902.0,0.11774375]
[1680586103521,0.1414551,27903.0,27902.0,0.11774375]
[1680586104346,0.1414551,27903.0,27902.0,0.24560712]
[1680586104597,0.1414551,27903.0,27902.0,0.30866542]
[1680586104956,0.1414551,27903.0,27902.0,0.65624867]
[1680586105175,0.1414551,27903.0,27902.0,0.31848499]
[1680586105520,0.1414551,27903.0,27902.0,0.30862699]
[1680586105951,0.1414551,27903.0,27902.0,0.30850699]
[1680586106162,0.1414551,27903.0,27902.0,0.31829999]
[1680586106601,0.1414551,27903.0,27902.0,0.91361103]
[1680586106822,0.1414551,27903.0,27902.0,0.59353518]
[1680586107045,0.1414551,27903.0,27902.0,0.59341518]
[1680586107275,0.011,27903.0,27902.0,0.76555518]
[1680586107496,0.011,27903.0,27902.0,0.80817631]
[1680586107720,0.011,27903.0,27902.0,0.92231597]
[1680586108175,0.1304551,27906.0,27902.0,0.9648828]
[1680586108408,0.1304551,27906.0,27905.0,0.08512853]
[1680586109347,0.1304551,27906.0,27904.0,0.25720853]
[1680586110019,0.39478438,27906.0,27904.0,0.25726853]
[1680586110242,0.39478438,27906.0,27904.0,0.08530853]
[1680586110456,0.44636968,27906.0,27904.0,0.08530853]
[1680586110710,0.40695138,27906.0,27904.0,0.08530853]
[1680586111375,0.40695138,27906.0,27904.0,0.00018]
[1680586111600,0.40695138,27906.0,27903.0,0.38496132]
[1680586112720,0.40195138,27906.0,27903.0,0.38496132]
[1680586112938,0.40195138,27906.0,27904.0,0.08512853]
[1680586113172,0.39478438,27906.0,27904.0,0.00018]
[1680586113388,0.39478438,27906.0,27904.0,0.00012]
[1680586113862,0.39478438,27906.0,27903.0,0.24006609]
[1680586113863,0.39499438,27906.0,27903.0,0.24006609]
[1680586114084,0.39999438,27906.0,27903.0,0.24006609]
[1680586114753,0.39499438,27906.0,27903.0,0.24006609]
[1680586115411,0.39499438,27906.0,27903.0,0.06810609]
[1680586115534,0.39499438,27906.0,27903.0,0.24206609]
[1680586115753,0.39499438,27906.0,27904.0,0.03231531]
[1680586116799,0.28083364,27905.0,27903.0,0.11311651]
[1680586117007,0.28083364,27905.0,27903.0,0.17196]
[1680586117008,0.28104364,27905.0,27903.0,0.17196]
[1680586117640,0.28104364,27905.0,27904.0,0.03084643]
[1680586119078,0.28604364,27905.0,27904.0,0.03084643]
[1680586132810,0.28604364,27905.0,27904.0,0.04080843]
[1680586133460,0.28604364,27905.0,27904.0,0.03084643]
[1680586134124,0.00521,27905.0,27904.0,0.04063743]
[1680586134345,0.005,27905.0,27904.0,0.09073106]
[1680586134559,0.005,27905.0,27904.0,0.04063743]
[1680586134996,0.005,27905.0,27904.0,0.12567532]
[1680586135431,0.005,27905.0,27904.0,0.29763532]
[1680586136343,0.31162654,27905.0,27904.0,0.04063743]
[1680586136557,0.31183654,27905.0,27904.0,0.03084643]
[1680586139045,0.31183654,27905.0,27904.0,0.11588432]
[1680586140637,0.31155869,27905.0,27904.0,0.11588432]
[1680586143121,0.31155869,27905.0,27904.0,0.15853922]
[1680586143335,0.31155869,27905.0,27904.0,0.58175028]
[1680586143549,0.31155869,27905.0,27904.0,0.59187828]
[1680586143777,0.31155869,27905.0,27904.0,0.58193028]
[1680586143998,0.31155869,27905.0,27904.0,0.59076128]
[1680586145140,0.01230915,27905.0,27904.0,0.42243513]
[1680586145336,0.30683451,27905.0,27903.0,0.17043706]
[1680586145591,0.34322654,27904.0,27903.0,0.34221706]
[1680586145820,0.34322654,27904.0,27903.0,0.34239706]
[1680586146265,0.007377,27904.0,27902.0,0.21329133]
[1680586146507,0.007377,27904.0,27902.0,0.0851807]
[1680586146508,0.1376221,27904.0,27902.0,0.0851807]
[1680586146736,0.047579,27903.0,27902.0,0.0851807]
[1680586146967,0.069081,27903.0,27902.0,0.0851807]
[1680586147196,0.069081,27903.0,27902.0,0.08518843]
[1680586147888,0.069291,27903.0,27902.0,0.08518843]
[1680586148350,0.13509766,27903.0,27902.0,0.08518843]
[1680586148567,0.38228514,27903.0,27902.0,0.08518843]
[1680586149046,0.38228514,27903.0,27901.0,0.08518843]
[1680586149279,0.35270614,27903.0,27901.0,0.08518843]
[1680586149500,0.124353,27902.0,27901.0,0.08518843]
[1680586149716,0.13173,27902.0,27901.0,0.08518843]
[1680586150571,0.13173,27902.0,27901.0,0.08507687]
[1680586150792,0.13152,27902.0,27901.0,0.08507687]
[1680586151000,0.46923332,27902.0,27901.0,0.08507687]
[1680586151214,0.48723332,27902.0,27901.0,0.08507687]
[1680586151432,0.46923332,27902.0,27901.0,0.08507687]
[1680586151663,0.49323332,27902.0,27901.0,0.08507687]
[1680586152095,0.42198032,27902.0,27901.0,0.08507687]
[1680586152309,0.44898032,27902.0,27901.0,0.08507687]
[1680586152523,0.49779032,27902.0,27901.0,0.08507687]
[1680586152733,0.50020932,27902.0,27899.0,0.00018]
[1680586152946,0.50020932,27902.0,27898.0,0.38525133]
[1680586152947,0.1304551,27900.0,27898.0,0.38525133]
[1680586153156,0.03237546,27899.0,27898.0,0.38525133]
[1680586153407,0.35854027,27899.0,27897.0,0.39605133]
[1680586153637,0.40701793,27898.0,27897.0,0.0108]
[1680586153872,0.51048013,27898.0,27897.0,0.0108]
[1680586154093,0.60165173,27898.0,27897.0,0.0108]
[1680586155439,0.62865173,27898.0,27897.0,0.0108]
[1680586155657,0.60165173,27898.0,27897.0,0.0108]
[1680586156766,0.62865173,27898.0,27897.0,0.0108]
[1680586156982,0.53748013,27898.0,27897.0,0.0108]
[1680586158049,0.51048013,27898.0,27897.0,0.0108]
[1680586158267,0.53748013,27898.0,27897.0,0.0108]
[1680586159853,0.53748013,27898.0,27897.0,0.03857113]
[1680586160064,0.57334656,27898.0,27897.0,0.03857113]
[1680586160290,0.52395756,27898.0,27897.0,0.03857113]
[1680586160519,0.0595682,27898.0,27897.0,0.03857113]
[1680586160743,0.0595682,27898.0,27897.0,0.04450824]
[1680586161638,0.0667362,27898.0,27897.0,0.03857113]
[1680586162116,0.0667362,27898.0,27897.0,0.03357113]
[1680586165194,0.32805625,27898.0,27897.0,0.03357113]
[1680586165405,0.37662325,27898.0,27897.0,0.03357113]
[1680586165616,0.32805625,27898.0,27897.0,0.03357113]
[1680586165831,0.32826625,27898.0,27897.0,0.03357113]
[1680586166043,0.32805625,27898.0,27897.0,0.03357113]
[1680586167190,0.46057009,27898.0,27897.0,0.03357113]
[1680586167413,0.83697009,27898.0,27897.0,0.03357113]
[1680586170257,0.83697009,27898.0,27897.0,0.03357113]
[1680586172239,0.87194161,27898.0,27897.0,0.03357113]
[1680586177495,0.78692577,27898.0,27897.0,0.03357113]
[1680586179099,0.78692577,27898.0,27892.0,0.27786903]
[1680586179100,0.24798632,27897.0,27892.0,0.19144383]
[1680586179311,0.05446171,27896.0,27892.0,0.19126383]
[1680586179531,0.1304551,27894.0,27892.0,0.19126383]
[1680586179749,0.03314649,27893.0,27892.0,0.19126383]
[1680586180410,0.03314649,27893.0,27892.0,0.3183376]
[1680586180626,0.03314649,27893.0,27892.0,0.44630174]
[1680586181057,0.03314649,27893.0,27892.0,0.42705791]
[1680586181271,0.03314649,27893.0,27892.0,0.85040062]
[1680586181548,0.03314649,27893.0,27892.0,0.92740062]
[1680586181758,0.04414649,27893.0,27892.0,0.92740062]
[1680586182601,0.04414649,27893.0,27892.0,0.80974885]
[1680586184886,0.04414649,27893.0,27892.0,0.85234309]
[1680586186846,0.04414649,27893.0,27892.0,0.87928617]
[1680586188389,0.04414649,27893.0,27892.0,0.83651995]
[1680586189000,0.04414649,27893.0,27892.0,0.86061995]
[1680586189397,0.04414649,27893.0,27892.0,0.90338617]
[1680586191005,0.04414649,27893.0,27892.0,0.94611912]
[1680586191207,0.04414649,27893.0,27892.0,0.86911912]
[1680586191413,0.04414649,27893.0,27892.0,0.85969712]
[1680586191624,0.04414649,27893.0,27892.0,0.69799912]
[1680586193314,0.04414649,27893.0,27892.0,0.68767712]
[1680586193527,0.04414649,27893.0,27892.0,0.69757012]
[1680586193952,0.04414649,27893.0,27892.0,0.68767712]
[1680586194625,0.04414649,27893.0,27892.0,0.69771812]
[1680586194831,0.011,27893.0,27892.0,0.69753812]
[1680586195045,0.011,27893.0,27892.0,0.79428193]
[1680586195492,0.011,27893.0,27892.0,0.79410093]
[1680586195714,0.011,27893.0,27892.0,0.79428393]
[1680586195928,0.011,27893.0,27892.0,0.69754012]
[1680586196127,0.011,27893.0,27892.0,0.68749712]
[1680586197200,0.011,27893.0,27892.0,0.47438579]
[1680586197405,0.011,27893.0,27892.0,0.48422779]
[1680586197815,0.011,27893.0,27892.0,0.47438579]
[1680586199567,0.011,27893.0,27892.0,0.65666779]
[1680586200408,0.011,27893.0,27892.0,0.64640579]
[1680586201523,0.011,27893.0,27892.0,0.65602879]
[1680586202202,0.011,27893.0,27892.0,0.65607679]
[1680586202424,0.011,27893.0,27892.0,0.64747679]
[1680586208010,0.011,27893.0,27892.0,0.63780579]
[1680586208453,0.011,27893.0,27892.0,0.64760179]
[1680586209763,0.011,27893.0,27892.0,0.90486312]
[1680586210207,0.011,27893.0,27892.0,0.73284312]
[1680586210423,0.011,27893.0,27892.0,0.47558179]
[1680586210650,0.011,27893.0,27892.0,0.90486312]
[1680586211095,0.011,27893.0,27892.0,0.73284312]
[1680586211767,0.011,27893.0,27892.0,0.90486312]
[1680586213573,0.011,27893.0,27892.0,1.00659163]
[1680586214807,0.1304551,27894.0,27892.0,1.00659163]
[1680586215021,0.1304551,27894.0,27893.0,0.42334271]
[1680586216942,0.1304551,27894.0,27893.0,0.42434271]
[1680586217793,0.13038918,27894.0,27893.0,0.42446271]
[1680586218405,0.13038918,27894.0,27893.0,0.43474871]
[1680586219838,0.13038918,27894.0,27893.0,0.43374871]
[1680586220084,0.13038918,27894.0,27893.0,0.43474871]
[1680586222166,0.13038918,27894.0,27893.0,0.46175019]
[1680586222702,0.13038918,27894.0,27893.0,0.46163019]
[1680586223130,0.13038918,27894.0,27893.0,0.63365019]
[1680586223329,0.13038918,27894.0,27893.0,0.46163019]
[1680586223984,0.13038918,27894.0,27893.0,0.62336419]
[1680586224199,0.13038918,27894.0,27893.0,0.46098119]
[1680586224626,0.13038918,27894.0,27893.0,0.47678119]
[1680586226383,0.13038918,27894.0,27893.0,0.46714419]
[1680586226923,0.13038918,27894.0,27893.0,0.47699119]
[1680586230310,0.13038918,27894.0,27893.0,0.64901119]
[1680586230524,0.13038918,27894.0,27893.0,0.56763644]
[1680586230742,0.13038918,27894.0,27893.0,1.01125777]
[1680586230956,0.13038918,27894.0,27893.0,0.99685777]
[1680586231176,0.13038918,27894.0,27893.0,1.07375777]
[1680586232054,0.13038918,27894.0,27893.0,1.07293777]
[1680586232265,0.13038918,27894.0,27893.0,1.07393777]
[1680586235185,0.12772368,27894.0,27893.0,1.07375777]
[1680586235946,0.12478956,27894.0,27893.0,1.07375777]
[1680586237132,0.1218875,27894.0,27893.0,1.07375777]
[1680586238083,0.119018,27894.0,27893.0,1.07375777]
[1680586239113,0.11618124,27894.0,27893.0,1.07375777]
[1680586240084,0.11337411,27894.0,27893.0,1.07375777]
[1680586240978,0.11087451,27894.0,27893.0,1.07375777]
[1680586241535,0.11087451,27894.0,27893.0,1.07381777]
[1680586241750,0.11087451,27894.0,27893.0,1.07375777]
[1680586241964,0.11087451,27894.0,27893.0,1.07381777]
[1680586242181,0.10839868,27894.0,27893.0,1.07381777]
[1680586243063,0.10594633,27894.0,27893.0,1.06397077]
[1680586243384,0.10594633,27894.0,27893.0,0.80670944]
[1680586243586,0.10594633,27894.0,27893.0,0.81675044]
[1680586244234,0.10594633,27894.0,27893.0,0.80670944]
[1680586244444,0.10594633,27894.0,27893.0,0.81639144]
[1680586244870,0.10594633,27894.0,27893.0,1.07359277]
[1680586245964,0.10353762,27894.0,27893.0,1.07359277]
[1680586247135,0.10115205,27894.0,27893.0,1.07359277]
[1680586247906,0.09878923,27894.0,27893.0,1.07359277]
[1680586248960,0.09644895,27894.0,27893.0,1.07159277]
[1680586250071,0.09413106,27894.0,27893.0,1.07159277]
[1680586251175,0.09183548,27894.0,27893.0,1.07159277]
[1680586251665,0.09183548,27894.0,27893.0,0.81433144]
[1680586251878,0.09183548,27894.0,27893.0,0.81439144]
[1680586252106,0.08956213,27894.0,27893.0,0.81439144]
[1680586252747,0.08956213,27894.0,27893.0,0.80470944]
[1680586252972,0.0873109,27894.0,27893.0,0.81488544]
[1680586253586,0.0873109,27894.0,27893.0,0.71406419]
[1680586254015,0.08483229,27894.0,27893.0,0.71406419]
[1680586254235,0.08483229,27894.0,27893.0,0.72391119]
[1680586254682,0.08483229,27894.0,27893.0,0.71406419]
[1680586254972,0.08237852,27894.0,27893.0,0.71406419]
[1680586255194,0.08237852,27894.0,27893.0,0.72394719]